bitfinex-derivatives/quotes_BTCF0:USTF0_20250509
["timestamp","ask_amount","ask_price","bid_price","bid_amount"]
[1746756336111,0.92416336,103060.0,103050.0,0.0674]
[1746756337607,0.8155508,103060.0,103050.0,0.0674]
[1746756337807,0.92416336,103060.0,103050.0,0.0674]
[1746756339213,0.92416336,103060.0,103050.0,0.2274]
[1746756339605,0.92416336,103060.0,103050.0,0.1972]
[1746756339803,1.03277592,103060.0,103050.0,0.113961]
[1746756340009,0.1941284,103040.0,103030.0,0.03331163]
[1746756340207,1.02434096,103040.0,103030.0,0.06551163]
[1746756340407,1.11964096,103040.0,103030.0,0.00291163]
[1746756340613,1.12206096,103040.0,103030.0,0.00291163]
[1746756340814,1.28926096,103040.0,103030.0,0.00291163]
[1746756341116,1.29026096,103040.0,103030.0,0.00991163]
[1746756341514,0.1941473,103030.0,103020.0,0.00097068]
[1746756341813,0.72865986,103030.0,103020.0,0.00097068]
[1746756342915,0.72850305,103030.0,103020.0,0.00097068]
[1746756343216,0.72850305,103030.0,103020.0,0.00197068]
[1746756343217,0.72950305,103030.0,103020.0,0.00197068]
[1746756343417,0.72950305,103030.0,103020.0,0.03247068]
[1746756343611,0.62089049,103030.0,103020.0,0.06387068]
[1746756343813,0.89570305,103030.0,103020.0,0.06287068]
[1746756344011,0.90070305,103030.0,103020.0,0.06287068]
[1746756350510,0.005,103030.0,103020.0,1.14644934]
[1746756350820,0.005,103030.0,103020.0,1.27561334]
[1746756351317,0.00242,103040.0,103030.0,0.1941473]
[1746756351620,0.00242,103040.0,103030.0,0.77505986]
[1746756352125,0.00242,103040.0,103030.0,0.93505986]
[1746756352420,0.00242,103040.0,103030.0,1.18865986]
[1746756352622,0.00242,103040.0,103030.0,0.82785986]
[1746756352919,0.00742,103040.0,103030.0,1.18865986]
[1746756353121,0.00942,103040.0,103030.0,1.13865986]
[1746756354016,0.00942,103040.0,103030.0,1.16865986]
[1746756354220,0.00942,103040.0,103030.0,1.13865986]
[1746756355021,0.00942,103040.0,103030.0,1.15865986]
[1746756355421,0.2035484,103040.0,103030.0,1.13865986]
[1746756357322,0.2035484,103040.0,103030.0,1.0300473]
[1746756357513,0.2035484,103040.0,103030.0,0.6692473]
[1746756357713,0.2343484,103040.0,103030.0,0.6692473]
[1746756358223,0.2343484,103040.0,103030.0,0.4156473]
[1746756359320,0.2343484,103040.0,103030.0,0.7764473]
[1746756360112,0.5951484,103040.0,103030.0,0.4156473]
[1746756360317,0.73616096,103040.0,103030.0,0.2215]
[1746756360617,0.76676096,103040.0,103030.0,0.2215]
[1746756361117,0.76676096,103040.0,103030.0,0.031]
[1746756361320,0.1941473,103030.0,103020.0,0.07877068]
[1746756361519,0.72745986,103030.0,103020.0,0.27293678]
[1746756361712,0.72745986,103030.0,103020.0,0.30293678]
[1746756362122,0.72745986,103030.0,103020.0,0.03097068]
[1746756362424,0.72745986,103030.0,103020.0,0.00097068]
[1746756362917,0.72745986,103030.0,103020.0,0.19513678]
[1746756363511,0.6188473,103030.0,103020.0,0.19513678]
[1746756363922,0.72745986,103030.0,103020.0,0.19513678]
[1746756364126,0.72745986,103030.0,103020.0,0.35513678]
[1746756364312,0.72845986,103030.0,103020.0,0.35513678]
[1746756365228,0.72845986,103030.0,103020.0,0.19513678]
[1746756365521,0.72845986,103030.0,103020.0,0.00097068]
[1746756367820,0.92051242,103030.0,103020.0,0.00097068]
[1746756368224,0.81189986,103030.0,103020.0,0.00097068]
[1746756369524,0.001,103030.0,103020.0,0.19513678]
[1746756369724,0.00242,103040.0,103030.0,0.1941473]
[1746756370027,0.0314,103060.0,103050.0,0.1941096]
[1746756370229,0.0003,103060.0,103050.0,2.59917072]
[1746756370524,0.0003,103060.0,103050.0,2.90987072]
[1746756370720,0.0003,103060.0,103050.0,2.55125816]
[1746756371231,0.0003,103060.0,103050.0,2.52125816]
[1746756371527,0.0003,103060.0,103050.0,2.3156096]
[1746756371726,0.0003,103060.0,103050.0,2.42422216]
[1746756372630,0.0003,103060.0,103050.0,0.92522216]
[1746756372821,0.0003,103060.0,103050.0,0.92622216]
[1746756373023,0.0003,103060.0,103050.0,2.42622216]
[1746756373527,0.0003,103060.0,103050.0,2.61622216]
[1746756373731,0.1943908,103060.0,103050.0,2.2776096]
[1746756373924,0.2251908,103060.0,103050.0,0.2227]
[1746756374127,0.36710336,103060.0,103050.0,0.162]
[1746756374424,0.72790336,103060.0,103050.0,0.162]
[1746756375036,0.6192908,103060.0,103050.0,0.46472216]
[1746756375236,0.0003,103060.0,103050.0,1.07752216]
[1746756375530,0.0003,103060.0,103050.0,1.18613472]
[1746756375531,0.0033,103060.0,103050.0,1.18613472]
[1746756375732,0.0033,103060.0,103050.0,1.21733472]
[1746756375923,0.1973908,103060.0,103050.0,1.10872216]
[1746756376327,0.0073,103060.0,103050.0,1.10772216]
[1746756376830,0.0033,103060.0,103050.0,1.10772216]
[1746756377027,0.0033,103060.0,103050.0,0.91772216]
[1746756377330,0.0053,103060.0,103050.0,1.09772216]
[1746756378031,0.0003,103060.0,103050.0,1.09672216]
[1746756378332,0.0013,103060.0,103050.0,1.09672216]
[1746756378531,0.0013,103060.0,103050.0,0.91672216]
[1746756378724,0.0013,103060.0,103050.0,1.08672216]
[1746756382432,0.1953908,103060.0,103050.0,1.08672216]
[1746756382635,0.0344,103060.0,103050.0,1.08672216]
[1746756383527,0.0013,103060.0,103050.0,1.08672216]
[1746756384030,0.0013,103060.0,103050.0,0.72592216]
[1746756384240,0.0013,103060.0,103050.0,1.08672216]
[1746756385232,0.0013,103060.0,103050.0,0.91672216]
[1746756385636,0.1953908,103060.0,103050.0,0.91672216]
[1746756386431,0.0013,103060.0,103050.0,0.91672216]
[1746756386626,0.0013,103060.0,103050.0,1.19533472]
[1746756387333,0.0013,103060.0,103050.0,1.08672216]
[1746756387824,0.0013,103060.0,103050.0,1.19533472]
[1746756388130,0.0013,103060.0,103050.0,1.08672216]
[1746756388729,1e-08,103060.0,103050.0,1.34237072]
[1746756389131,1e-08,103060.0,103050.0,1.35208421]
[1746756390229,1e-08,103060.0,103050.0,1.35308421]
[1746756390434,0.2450131,103070.0,103060.0,0.1940908]
[1746756390635,0.2764131,103070.0,103060.0,0.424]
[1746756390837,0.3091131,103070.0,103060.0,0.2572908]
[1746756391041,0.3398131,103070.0,103060.0,0.2572908]
[1746756391240,0.3398131,103070.0,103060.0,0.7780908]
[1746756391738,0.3408131,103070.0,103060.0,0.7780908]
[1746756392738,0.3408131,103070.0,103060.0,0.79276923]
[1746756394842,0.3408131,103070.0,103060.0,0.43196923]
[1746756396035,0.3408131,103070.0,103060.0,0.36876923]
[1746756396432,0.3408131,103070.0,103060.0,0.40146923]
[1746756396627,0.09822,103070.0,103060.0,0.90298179]
[1746756398042,0.09822,103070.0,103060.0,0.79436923]
[1746756399741,0.09822,103070.0,103060.0,0.90298179]
[1746756403544,0.2922919,103070.0,103060.0,0.90298179]
[1746756403844,0.2922919,103070.0,103060.0,0.79436923]
[1746756404145,0.2922919,103070.0,103060.0,0.90298179]
[1746756405747,0.2922919,103070.0,103060.0,0.79436923]
[1746756405935,0.2922919,103070.0,103060.0,0.90298179]
[1746756407742,0.2922919,103070.0,103060.0,0.79436923]
[1746756407942,0.2922919,103070.0,103060.0,0.76226923]
[1746756409039,0.2922919,103070.0,103060.0,0.90408179]
[1746756410247,0.2922919,103070.0,103060.0,0.79546923]
[1746756416051,0.6530919,103070.0,103060.0,0.40146923]
[1746756416656,0.2922919,103070.0,103060.0,0.76226923]
[1746756418450,0.2922919,103070.0,103060.0,0.79306923]
[1746756421066,0.2922919,103070.0,103060.0,0.43226923]
[1746756421654,0.76170446,103070.0,103060.0,0.17467843]
[1746756421854,0.76170446,103070.0,103060.0,0.16]
[1746756422066,0.76170446,103070.0,103050.0,0.2911524]
[1746756422366,0.6175908,103060.0,103050.0,0.3222524]
[1746756426164,0.6175908,103060.0,103050.0,0.4822524]
[1746756426472,0.6175908,103060.0,103050.0,0.98466496]
[1746756426473,0.0317,103060.0,103050.0,0.98466496]
[1746756426669,0.0632,103070.0,103060.0,0.1940908]
[1746756426869,0.2879719,103070.0,103060.0,0.6205908]
[1746756427180,0.2879719,103070.0,103060.0,0.7805908]
[1746756427861,0.2899719,103070.0,103060.0,0.7805908]
[1746756428975,0.2919719,103070.0,103060.0,0.4207908]
[1746756429275,0.2919719,103070.0,103060.0,0.7815908]
[1746756429876,0.2919719,103070.0,103060.0,0.79624423]
[1746756430077,0.2943919,103070.0,103060.0,0.79624423]
[1746756432676,0.76380446,103070.0,103060.0,0.24135343]
[1746756432977,0.76380446,103070.0,103060.0,0.17565343]
[1746756433178,0.84680446,103070.0,103060.0,0.001]
[1746756433379,1.02683246,103070.0,103060.0,0.001]
[1746756433678,0.7381919,103070.0,103060.0,0.001]
[1746756433882,0.2943919,103070.0,103060.0,0.1950908]
[1746756434073,0.2943919,103070.0,103060.0,0.20995307]
[1746756434273,0.48600446,103070.0,103060.0,0.24015307]
[1746756437871,0.10032,103070.0,103060.0,0.34876563]
[1746756438078,0.2943919,103070.0,103060.0,0.79145307]
[1746756438679,0.76380446,103070.0,103060.0,0.23656227]
[1746756440186,0.76380446,103070.0,103060.0,0.07656227]
[1746756441180,0.76380446,103070.0,103060.0,0.27065307]
[1746756441382,0.76380446,103070.0,103060.0,0.01586227]
[1746756442175,0.76380446,103070.0,103060.0,0.001]
[1746756443188,0.84776446,103070.0,103060.0,0.001]
[1746756451490,0.84776446,103070.0,103060.0,0.0312]
[1746756451692,0.76380446,103070.0,103060.0,0.2252908]
[1746756451993,0.2943919,103070.0,103060.0,0.2252908]
[1746756452179,0.2943919,103070.0,103060.0,0.4156908]
[1746756452381,0.2943919,103070.0,103060.0,0.43013682]
[1746756453183,0.6551919,103070.0,103060.0,0.43013682]
[1746756454282,0.6551919,103070.0,103060.0,0.23604602]
[1746756454478,0.76380446,103070.0,103060.0,0.23604602]
[1746756454988,0.84716446,103070.0,103060.0,0.23604602]
[1746756457377,0.7385519,103070.0,103060.0,0.23604602]
[1746756457783,0.84716446,103070.0,103060.0,0.23604602]
[1746756458892,0.84716446,103070.0,103060.0,0.43013682]
[1746756459092,0.84716446,103070.0,103060.0,0.23604602]
[1746756459493,0.7385519,103070.0,103060.0,0.23604602]
[1746756460196,0.7385519,103070.0,103060.0,0.26704602]
[1746756461082,0.84716446,103070.0,103060.0,0.26704602]
[1746756461492,0.84716446,103070.0,103060.0,0.46113682]
[1746756462091,0.7385519,103070.0,103060.0,0.46113682]
[1746756462291,0.6551919,103070.0,103060.0,0.26704602]
[1746756465286,0.76380446,103070.0,103060.0,0.26704602]
[1746756466293,0.76380446,103070.0,103060.0,0.23604602]
[1746756466483,0.76380446,103070.0,103060.0,0.20564602]
[1746756468693,0.40300446,103070.0,103060.0,0.23594602]
[1746756470891,0.76380446,103070.0,103060.0,0.23594602]
[1746756474397,0.76380446,103070.0,103060.0,0.20564602]
[1746756474587,0.76380446,103070.0,103060.0,0.161]
[1746756475393,0.76380446,103070.0,103060.0,0.001]
[1746756475794,0.76180446,103070.0,103060.0,0.001]
[1746756475995,0.76480446,103070.0,103060.0,0.001]
[1746756476301,0.77080446,103070.0,103060.0,0.002]
[1746756477298,0.77080446,103070.0,103060.0,0.0325]
[1746756481804,0.77080446,103070.0,103060.0,0.002]
[1746756484595,0.85380446,103070.0,103060.0,0.002]
[1746756487803,0.1940908,103060.0,103050.0,0.0319]
[1746756487999,0.80936336,103060.0,103050.0,0.0319]
[1746756488302,0.80936336,103060.0,103050.0,0.1919]
[1746756489202,0.81336336,103060.0,103050.0,0.1919]
[1746756489396,0.81736336,103060.0,103050.0,0.2253]
[1746756491504,0.81978336,103060.0,103050.0,0.2253]
[1746756491703,0.85372772,103060.0,103050.0,0.2253]
[1746756496307,0.7111708,103060.0,103050.0,0.2253]
[1746756496507,0.85372772,103060.0,103050.0,0.2253]
[1746756501906,0.73091538,103060.0,103030.0,0.00291163]
[1746756502207,0.69748532,103040.0,103030.0,0.06901163]
[1746756502407,0.78036532,103040.0,103030.0,0.03591163]
[1746756502604,0.81126532,103040.0,103030.0,0.03591163]
[1746756503005,0.81126532,103040.0,103030.0,0.00391163]
[1746756503203,0.84336532,103040.0,103030.0,0.00391163]
[1746756504407,0.91464378,103040.0,103030.0,0.00391163]
[1746756505811,0.84836532,103040.0,103030.0,0.00391163]
[1746756506002,0.6229284,103040.0,103030.0,0.00391163]
[1746756506206,0.77712686,103040.0,103030.0,0.03401163]
[1746756506402,0.77712686,103040.0,103030.0,0.09841163]
[1746756506816,0.41632686,103040.0,103030.0,0.09841163]
[1746756507120,0.41632686,103040.0,103030.0,0.25841163]
[1746756507311,0.3141484,103040.0,103030.0,0.25841163]
[1746756507510,0.6749484,103040.0,103030.0,0.25841163]
[1746756508909,0.78356628,103040.0,103030.0,0.25841163]
[1746756512115,0.1991284,103040.0,103030.0,0.92197681]
[1746756512510,0.1991284,103040.0,103030.0,0.81335893]
[1746756516817,0.1991284,103040.0,103030.0,1.12197681]
[1746756517118,0.1991284,103040.0,103030.0,0.92197681]
[1746756517514,0.1991284,103040.0,103030.0,1.12197681]
[1746756517918,0.1991284,103040.0,103030.0,1.30903281]
[1746756518513,0.005,103040.0,103030.0,1.39183281]
[1746756518913,0.1991284,103040.0,103030.0,1.47475281]
[1746756519416,0.1991284,103040.0,103030.0,1.01335893]
[1746756519622,0.1991284,103040.0,103030.0,0.81335893]
[1746756519818,0.2318284,103040.0,103030.0,0.45255893]
[1746756520015,0.2318284,103040.0,103030.0,0.81335893]
[1746756524326,0.2318284,103040.0,103030.0,0.92197681]
[1746756525832,0.2318284,103040.0,103030.0,0.81335893]
[1746756526127,0.37044628,103040.0,103030.0,0.45255893]
[1746756526323,0.2618284,103040.0,103030.0,0.45255893]
[1746756526529,0.2618284,103040.0,103030.0,0.81335893]
[1746756530529,0.2618284,103040.0,103030.0,0.78325893]
[1746756534635,0.37044628,103040.0,103030.0,0.35805893]
[1746756534823,0.37044628,103040.0,103030.0,0.16391163]
[1746756535018,0.73124628,103040.0,103030.0,0.16391163]
[1746756535229,0.73124628,103040.0,103030.0,0.00391163]
[1746756537629,0.37044628,103040.0,103030.0,0.00391163]
[1746756537835,0.73124628,103040.0,103030.0,0.00391163]
[1746756539324,0.1941473,103030.0,103020.0,0.00097068]
[1746756539527,0.194185,103010.0,103000.0,0.05061449]
[1746756539832,0.66360288,103010.0,103000.0,0.05061449]
[1746756540031,0.75910288,103010.0,103000.0,0.05061449]
[1746756541324,0.650485,103010.0,103000.0,0.24481829]
[1746756541528,0.651485,103010.0,103000.0,0.05361449]
[1746756541727,0.66105938,103010.0,103000.0,0.08431449]
[1746756542032,0.66105938,103010.0,103000.0,0.27851829]
[1746756542231,0.66105938,103010.0,103000.0,0.28251829]
[1746756542438,0.30025938,103010.0,103000.0,0.28251829]
[1746756542737,0.30025938,103010.0,103000.0,0.64331829]
[1746756543339,0.30025938,103010.0,103000.0,0.60911449]
[1746756543533,0.30025938,103010.0,103000.0,0.80331829]
[1746756543736,0.30025938,103010.0,103000.0,0.91193617]
[1746756543931,0.195185,103010.0,103000.0,0.91193617]
[1746756544331,0.001,103010.0,103000.0,0.97193617]
[1746756544541,0.195185,103010.0,103000.0,0.97193617]
[1746756545543,0.001,103010.0,103000.0,1.24902017]
[1746756545730,0.195185,103010.0,103000.0,1.24902017]
[1746756545927,0.001,103010.0,103000.0,1.32682017]
[1746756546630,0.195185,103010.0,103000.0,1.32682017]
[1746756546831,0.195185,103010.0,103000.0,1.14682017]
[1746756547030,0.195185,103010.0,103000.0,2.64682017]
[1746756547639,0.195185,103010.0,103000.0,2.82682017]
[1746756547841,0.001,103010.0,103000.0,2.82682017]
[1746756548328,0.3031961,103030.0,103020.0,0.1941661]
[1746756548530,0.2730961,103030.0,103020.0,0.5549661]
[1746756548734,0.2730961,103030.0,103020.0,0.6164661]
[1746756549139,0.28297608,103030.0,103020.0,0.7764661]
[1746756549340,0.25257608,103030.0,103020.0,0.88508398]
[1746756549542,0.2436961,103030.0,103020.0,0.88608398]
[1746756549927,0.001,103030.0,103020.0,0.88608398]
[1746756550332,0.1951473,103030.0,103020.0,0.88608398]
[1746756550939,0.2271473,103030.0,103020.0,1.1382661]
[1746756553044,0.2271473,103030.0,103020.0,1.24688398]
[1746756554243,0.2295673,103030.0,103020.0,1.24688398]
[1746756555139,0.2295673,103030.0,103020.0,0.88608398]
[1746756559340,0.00342,103030.0,103020.0,1.14388398]
[1746756559545,0.00342,103030.0,103020.0,1.54468398]
[1746756559747,0.1975673,103030.0,103020.0,1.54468398]
[1746756561643,0.1975673,103030.0,103020.0,1.2560661]
[1746756561844,0.1975673,103030.0,103020.0,1.36468398]
[1746756563750,0.2288673,103030.0,103020.0,1.36468398]
[1746756565048,0.00342,103030.0,103020.0,1.56468398]
[1746756565250,0.00342,103030.0,103020.0,1.77036586]
[1746756565949,0.2920166,103050.0,103040.0,0.1941284]
[1746756566148,0.30179022,103050.0,103040.0,0.82354628]
[1746756566356,0.23519022,103050.0,103040.0,0.88734628]
[1746756567552,0.26849022,103050.0,103040.0,0.7787284]
[1746756567855,0.27249022,103050.0,103040.0,0.7787284]
[1746756568456,0.27649022,103050.0,103040.0,0.7797284]
[1746756569158,0.2667166,103050.0,103040.0,0.7797284]
[1746756569548,0.2667166,103050.0,103040.0,0.88834628]
[1746756570155,0.2667166,103050.0,103040.0,0.92834628]
[1746756572253,0.0393,103050.0,103040.0,1.48914628]
[1746756572555,0.008,103050.0,103040.0,1.48914628]
[1746756572756,0.008,103050.0,103040.0,1.56694628]
[1746756572958,0.008,103050.0,103040.0,1.66399027]
[1746756573657,0.00372,103060.0,103050.0,0.1941096]
[1746756573861,0.00372,103060.0,103050.0,1.32764536]
[1746756574156,0.00372,103060.0,103050.0,1.61648136]
[1746756574352,0.00372,103060.0,103050.0,1.50786348]
[1746756574554,0.00372,103060.0,103050.0,1.41082748]
[1746756575059,0.00572,103060.0,103050.0,1.41182748]
[1746756575957,0.03752,103060.0,103050.0,1.41182748]
[1746756576161,0.06792,103060.0,103050.0,1.41182748]
[1746756576360,0.06692,103060.0,103050.0,1.41082748]
[1746756577154,0.03652,103060.0,103050.0,1.42565021]
[1746756577356,0.2435525,103090.0,103060.0,0.0485201]
[1746756577656,0.2920649,103090.0,103080.0,0.66347098]
[1746756577845,0.2920649,103090.0,103080.0,0.5548531]
[1746756578252,0.1940531,103080.0,103070.0,0.3608]
[1746756578447,0.44822158,103080.0,103070.0,0.1940719]
[1746756578656,0.1940719,103070.0,103060.0,0.7622193]
[1746756578857,0.2547719,103070.0,103060.0,0.7622193]
[1746756579147,0.2547719,103070.0,103060.0,0.9212193]
[1746756580350,0.2547719,103070.0,103060.0,0.9544193]
[1746756580948,0.2547719,103070.0,103060.0,0.9212193]
[1746756581153,0.2547719,103070.0,103060.0,0.7612193]
[1746756583160,0.2547719,103070.0,103060.0,0.6834193]
[1746756583465,0.2547719,103070.0,103060.0,0.56963707]
[1746756587464,0.2547719,103070.0,103060.0,0.60203707]
[1746756588363,0.2547719,103070.0,103060.0,0.61670387]
[1746756589464,0.2547719,103070.0,103060.0,0.25590387]
[1746756590366,0.2547719,103070.0,103060.0,0.02942777]
[1746756590667,0.2547719,103070.0,103060.0,0.22351857]
[1746756590858,0.2547719,103070.0,103060.0,0.33213645]
[1746756591054,0.2547719,103070.0,103060.0,0.39613645]
[1746756591260,0.2547719,103070.0,103060.0,0.59613645]
[1746756591466,0.0607,103070.0,103060.0,1.01983645]
[1746756591863,0.2547719,103070.0,103060.0,1.01983645]
[1746756592064,0.2547719,103070.0,103060.0,1.00516965]
[1746756592265,0.2547719,103070.0,103060.0,1.16516965]
[1746756593472,0.2547719,103070.0,103060.0,0.96516965]
[1746756595477,0.2547719,103070.0,103060.0,1.14516965]
[1746756595971,0.2547719,103070.0,103060.0,0.96516965]
[1746756597274,0.2547719,103070.0,103060.0,0.81986997]
[1746756597974,0.2547719,103070.0,103060.0,0.99986997]
[1746756598173,0.2547719,103070.0,103060.0,0.97986997]
[1746756598361,0.2547719,103070.0,103060.0,1.17986997]
[1746756601173,0.03342,103080.0,103060.0,0.98577917]
[1746756601382,0.03262,103080.0,103070.0,0.72888978]
[1746756601571,0.03262,103080.0,103070.0,0.90888978]
[1746756602272,0.03262,103080.0,103070.0,1.06888978]
[1746756602478,0.03462,103080.0,103070.0,1.06888978]
[1746756602774,0.2286731,103080.0,103070.0,1.06888978]
[1746756603076,0.2266731,103080.0,103070.0,1.06888978]
[1746756603276,0.00642,103080.0,103070.0,1.17124978]
[1746756604575,0.00642,103080.0,103070.0,1.17224978]
[1746756605772,0.00442,103080.0,103070.0,1.17224978]
[1746756606367,0.03352,103080.0,103070.0,1.17124978]
[1746756607177,0.03352,103080.0,103070.0,1.24904978]
[1746756607969,0.00342,103080.0,103070.0,1.24904978]
[1746756609267,0.001,103090.0,103080.0,0.1940531]
[1746756609480,0.001,103090.0,103080.0,1.20808886]
[1746756610178,0.001,103090.0,103080.0,2.6508531]
[1746756610478,0.001,103090.0,103080.0,2.86808886]
[1746756611076,0.034,103090.0,103080.0,2.75947098]
[1746756612784,0.034,103090.0,103080.0,2.6508531]
[1746756612968,0.034,103090.0,103080.0,2.75947098]
[1746756613173,0.034,103090.0,103080.0,2.83727098]
[1746756614082,0.034,103090.0,103080.0,3.19807098]
[1746756621381,0.034,103090.0,103080.0,3.30668886]
[1746756621579,0.034,103090.0,103080.0,3.19807098]
[1746756622196,0.034,103090.0,103080.0,3.2025301]
[1746756623188,0.002,103090.0,103080.0,3.2025301]
[1746756623794,0.002,103090.0,103080.0,3.31114798]
[1746756624582,0.0342,103090.0,103080.0,3.31114798]
[1746756624785,0.0342,103090.0,103080.0,3.2025301]
[1746756625591,0.0342,103090.0,103080.0,3.20252611]
[1746756626795,0.002,103090.0,103080.0,3.22114399]
[1746756627091,0.13492,103100.0,103090.0,0.1940343]
[1746756627281,0.13492,103100.0,103090.0,1.20208731]
[1746756627688,0.0624,103110.0,103100.0,0.1940155]
[1746756627896,0.0301,103110.0,103100.0,1.12572851]
[1746756628195,0.0301,103110.0,103100.0,1.36352851]
[1746756628390,0.0634,103120.0,103110.0,0.1939967]
[1746756628689,0.0311,103120.0,103110.0,1.11286759]
[1746756628895,0.0311,103120.0,103110.0,1.00424971]
[1746756629088,0.0614,103120.0,103110.0,1.00440849]
[1746756629289,0.0614,103120.0,103110.0,2.50440849]
[1746756629489,0.0634,103120.0,103110.0,2.50440849]
[1746756630092,0.0634,103120.0,103110.0,2.66440849]
[1746756631091,0.0614,103120.0,103110.0,2.58232849]
[1746756631289,0.0614,103120.0,103110.0,2.66520849]
[1746756631489,0.2553778,103120.0,103110.0,2.66520849]
[1746756631682,0.0614,103120.0,103110.0,2.66520849]
[1746756634996,0.0614,103120.0,103110.0,1.17491283]
[1746756635495,0.0614,103120.0,103110.0,2.59711283]
[1746756635696,0.0614,103120.0,103110.0,2.59708826]
[1746756636091,0.0614,103120.0,103110.0,2.48388104]
[1746756636293,0.0614,103120.0,103110.0,2.59708819]
[1746756636994,0.0614,103120.0,103110.0,1.09708819]
[1746756637590,0.0311,103120.0,103110.0,2.59708819]
[1746756638198,0.0311,103120.0,103110.0,2.48847031]
[1746756638492,0.0632,103120.0,103110.0,2.59708819]
[1746756639699,0.0632,103120.0,103110.0,2.59696888]
[1746756641301,0.2571778,103120.0,103110.0,2.37664666]
[1746756641503,0.2571778,103120.0,103110.0,0.95856666]
[1746756641902,0.2571778,103120.0,103110.0,1.06718454]
[1746756643301,0.2571778,103120.0,103110.0,1.03031458]
[1746756643601,0.2571778,103120.0,103110.0,0.8397767]
[1746756643799,0.2571778,103120.0,103110.0,0.7257967]
[1746756643997,0.36579568,103120.0,103110.0,0.7257967]
[1746756644194,0.52579568,103120.0,103110.0,0.5557967]
[1746756644596,0.4171778,103120.0,103110.0,0.5557967]
[1746756645494,0.77579568,103120.0,103110.0,0.3618]
[1746756645695,0.52579568,103120.0,103110.0,0.3618]
[1746756646600,0.52579568,103120.0,103110.0,0.5557967]
[1746756646800,0.52979568,103120.0,103110.0,0.3618]
[1746756647702,0.98757568,103120.0,103110.0,0.001]
[1746756647896,0.99157568,103120.0,103110.0,0.001]
[1746756648198,1.24157568,103120.0,103110.0,0.001]
[1746756648501,1.32341568,103120.0,103110.0,0.001]
[1746756649200,1.07341568,103120.0,103110.0,0.001]
[1746756649701,1.32341568,103120.0,103110.0,0.001]
[1746756650203,0.1940155,103100.0,103090.0,0.3608]
[1746756650504,0.30263338,103100.0,103090.0,0.3608]
[1746756650702,0.36673338,103100.0,103090.0,0.3608]
[1746756651102,0.52673338,103100.0,103090.0,0.3608]
[1746756651303,0.52673338,103100.0,103080.0,0.651865]
[1746756651304,0.1940343,103090.0,103080.0,0.651865]
[1746756651504,0.2886343,103090.0,103080.0,0.651865]
[1746756652507,0.2886343,103090.0,103080.0,0.5568418]
[1746756652705,0.39725218,103090.0,103080.0,0.3628]
[1746756652893,0.39725218,103090.0,103080.0,0.3648]
[1746756653096,0.75805218,103090.0,103080.0,0.004]
[1746756653298,0.91805218,103090.0,103080.0,0.004]
[1746756653693,0.91905218,103090.0,103080.0,0.002]
[1746756654006,0.1940531,103080.0,103070.0,0.60629494]
[1746756654209,0.2550531,103080.0,103070.0,0.60629494]
[1746756655108,0.2550531,103080.0,103070.0,0.60829494]
[1746756655307,0.26485031,103080.0,103070.0,0.60829494]
[1746756655807,0.26485031,103080.0,103070.0,0.61029494]
[1746756656508,0.26485031,103080.0,103070.0,0.24949494]
[1746756656705,0.26485031,103080.0,103070.0,0.61029494]
[1746756657910,0.26485031,103080.0,103070.0,0.64129494]
[1746756658506,0.26485031,103080.0,103070.0,0.67279494]
[1746756661108,0.37346819,103080.0,103070.0,0.00691064]
[1746756661611,0.93990207,103080.0,103070.0,0.00691064]
[1746756662006,1.02178207,103080.0,103070.0,0.02158682]
[1746756662305,1.18178207,103080.0,103070.0,0.02158682]
[1746756662510,1.18178207,103080.0,103070.0,0.00691064]
[1746756663011,1.07316419,103080.0,103070.0,0.00691064]
[1746756664316,1.18178207,103080.0,103070.0,0.00691064]
[1746756667513,1.07316419,103080.0,103070.0,0.00691064]
[1746756667916,1.18178207,103080.0,103070.0,0.00691064]
[1746756669216,0.1940908,103060.0,103050.0,0.06327039]
[1746756669414,0.66350868,103060.0,103050.0,0.06327039]
[1746756669603,0.72580868,103060.0,103050.0,0.06327039]
[1746756670308,0.72580868,103060.0,103050.0,0.03137039]
[1746756670504,0.1941284,103040.0,103030.0,0.20990835]
[1746756670713,0.66354628,103040.0,103030.0,0.11196295]
[1746756670916,0.72514628,103040.0,103030.0,0.07896295]
[1746756671113,0.6165284,103040.0,103030.0,0.27311025]
[1746756671425,0.72514628,103040.0,103030.0,0.27311025]
[1746756671617,0.6165284,103040.0,103030.0,0.27311025]
[1746756671817,0.6175284,103040.0,103030.0,0.26525893]
[1746756672319,0.72614628,103040.0,103030.0,0.26525893]
[1746756672910,0.72714628,103040.0,103030.0,0.03861163]
[1746756673209,0.90608228,103040.0,103030.0,0.005]
[1746756673411,0.1941473,103030.0,103020.0,0.00097068]
[1746756673611,0.194185,103010.0,103000.0,0.18181449]
[1746756673815,0.66360288,103010.0,103000.0,0.18181449]
[1746756674015,0.75760288,103010.0,103000.0,0.39077594]
[1746756674510,0.84170288,103010.0,103000.0,0.39077594]
[1746756675519,0.84270288,103010.0,103000.0,0.39777594]
[1746756675720,0.734085,103010.0,103000.0,0.39777594]
[1746756675922,0.76102288,103010.0,103000.0,0.39777594]
[1746756676217,0.00342,103010.0,103000.0,1.02719382]
[1746756676420,0.198605,103010.0,103000.0,0.91857594]
[1746756677022,0.00442,103010.0,103000.0,0.91857594]
[1746756677519,0.00442,103010.0,103000.0,1.27219382]
[1746756679712,0.198605,103010.0,103000.0,1.29219382]
[1746756680713,0.198605,103010.0,103000.0,1.28219382]
[1746756680913,0.198605,103010.0,103000.0,0.99357594]
[1746756681119,0.231705,103010.0,103000.0,0.55277594]
[1746756682021,0.231705,103010.0,103000.0,0.91357594]
[1746756683921,0.40072288,103010.0,103000.0,0.91357594]
[1746756684120,0.40072288,103010.0,103000.0,0.19857214]
[1746756684320,0.76152288,103010.0,103000.0,0.18377027]
[1746756684526,0.76252288,103010.0,103000.0,0.18177027]
[1746756684720,0.76252288,103010.0,103000.0,0.37697407]
[1746756684721,0.76452288,103010.0,103000.0,0.37697407]
[1746756685628,0.76452288,103010.0,103000.0,0.18277027]
[1746756685926,0.76452288,103010.0,103000.0,0.37697407]
[1746756687127,0.76452288,103010.0,103000.0,0.18277027]
[1746756688322,0.76452288,103010.0,103000.0,0.37697407]
[1746756689445,0.655905,103010.0,103000.0,0.37697407]
[1746756689628,0.76452288,103010.0,103000.0,0.37697407]
[1746756690830,0.76452288,103010.0,103000.0,0.18277027]
[1746756691030,0.76452288,103010.0,103000.0,0.37697407]
[1746756691931,0.76452288,103010.0,103000.0,0.18277027]
[1746756692435,0.76452288,103010.0,103000.0,0.37697407]
[1746756693642,0.76452288,103010.0,103000.0,0.18277027]
[1746756694029,0.76452288,103010.0,103000.0,0.15037027]
[1746756694230,0.655905,103010.0,103000.0,0.34457407]
[1746756694437,0.36822,103010.0,103000.0,0.68509195]